bitfinex-derivatives/quotes_SOLF0:USTF0_20260310
["timestamp","ask_amount","ask_price","bid_price","bid_amount"]
[1773118933980,13.06380194,86.726,86.65,12.78322056]
[1773118934687,12.78322056,86.75,86.654,10.385]
[1773118934688,13.01239768,86.724,86.654,10.385]
[1773118935790,13.01239597,86.71,86.61,12.78322056]
[1773118936786,13.02131769,86.705,86.64,10.387]
[1773118937883,13.02131595,86.7,86.63,10.388]
[1773118938380,13.02697625,86.699,86.61,12.78322056]
[1773118938586,13.02697625,86.693,86.61,12.78322056]
[1773118939689,13.02697452,86.69,86.62,10.389]
[1773118940890,13.0167156,86.685,86.629,10.388]
[1773118941592,13.0167156,86.685,86.639,10.387]
[1773118942386,13.0167156,86.685,86.628,10.388]
[1773118943390,13.0167156,86.685,86.617,10.39]
[1773118943597,13.0167156,86.685,86.61,12.78062157]
[1773118943792,10.382,86.683,86.61,12.78062157]
[1773118943998,13.01598419,86.682,86.616,10.39]
[1773118944696,13.01598419,86.682,86.606,10.391]
[1773118944899,13.0157321,86.669,86.57,12.78062157]
[1773118946402,13.01071477,86.661,86.604,10.391]
[1773118947100,13.01071477,86.658,86.547,21.04705713]
[1773118947301,13.01071477,86.649,86.56,12.78062157]
[1773118947597,12.78062157,86.65,86.56,12.78062157]
[1773118947598,13.01071329,86.647,86.56,12.78062157]
[1773118947901,13.01071329,86.645,86.56,12.78062157]
[1773118948102,13.01071329,86.643,86.585,10.393]
[1773118949404,13.01071329,86.643,86.594,10.392]
[1773118952501,13.15008805,86.642,86.583,10.394]
[1773118953802,13.15017333,86.696,86.63,12.78062157]
[1773118954002,13.15017333,86.696,86.65,12.78062157]
[1773118956303,13.15017333,86.696,86.63,12.78062157]
[1773118956808,13.15017333,86.696,86.64,10.387]
[1773118957998,10.38,86.694,86.64,10.387]
[1773118958199,13.16968282,86.693,86.581,34.69]
[1773118958511,13.16968282,86.693,86.62,12.78062157]
[1773118958704,13.18555537,86.676,86.616,10.39]
[1773118959098,13.18555537,86.676,86.6,12.78062157]
[1773118960407,13.18555537,86.676,86.62,12.78062157]
[1773118961511,13.20410363,86.674,86.621,10.389]
[1773118964213,13.20615642,86.673,86.621,10.389]
[1773118965507,13.14532,86.671,86.61,10.39]
[1773118967409,13.14532,86.671,86.619,10.389]
[1773118967816,72.04226255,86.827,86.62,12.78062157]
[1773118967817,13.15773806,86.688,86.62,12.78062157]
[1773118968007,13.15773806,86.688,86.637,10.387]
[1773118969606,13.13495265,86.711,86.647,10.386]
[1773118969811,13.13495265,86.71,86.647,10.386]
[1773118970507,13.1412788,86.708,86.647,10.386]
[1773118970704,13.1412788,86.707,86.637,10.387]
[1773118970910,13.1412788,86.707,86.62,12.78062157]
[1773118971109,13.1412788,86.705,86.62,12.78062157]
[1773118971311,13.1412788,86.705,86.581,20.788]
[1773118971312,13.1412788,86.682,86.6,12.78062157]
[1773118972419,13.14246424,86.68,86.624,10.389]
[1773118973114,10.382,86.679,86.624,10.389]
[1773118973313,13.14246424,86.678,86.624,10.389]
[1773118977317,13.14245596,86.694,86.64,12.78062157]
[1773118977617,13.14245441,86.712,86.64,12.78062157]
[1773118978218,13.14245441,86.712,86.641,34.69]
[1773118978920,13.14245441,86.712,86.64,12.78062157]
[1773118979120,13.14245441,86.712,86.671,10.383]
[1773118980318,13.14245441,86.712,86.62,12.78062157]
[1773118980514,13.28230369,86.71,86.62,12.78062157]
[1773118980718,13.28230369,86.708,86.62,12.78062157]
[1773118980915,13.28230369,86.708,86.621,34.69]
[1773118981324,13.28230369,86.708,86.657,10.385]
[1773118981821,13.28230369,86.708,86.62,12.78062157]
[1773118982320,13.28230167,86.706,86.62,12.78062157]
[1773118982513,13.28230167,86.706,86.64,12.78062157]
[1773118983025,13.28230167,86.706,86.654,10.385]
[1773118983222,13.28230167,86.706,86.64,12.78062157]
[1773118984422,13.28230167,86.706,86.656,10.385]
[1773118986234,13.28230167,86.706,86.62,12.78062157]
[1773118987432,13.29325419,86.696,86.633,10.388]
[1773118988132,13.29325229,86.689,86.623,10.389]
[1773118988532,13.29325229,86.689,86.62,12.78062157]
[1773118988933,13.29993772,86.687,86.631,10.388]
[1773118990429,10.381,86.686,86.631,10.388]
[1773118990631,13.29612322,86.685,86.631,10.388]
[1773118991332,13.29612322,86.682,86.621,10.389]
[1773118992535,13.29612322,86.682,86.63,10.388]
[1773118992929,13.29612322,86.682,86.62,12.78062157]
[1773118993129,13.29612322,86.682,86.6,12.78062157]
[1773118994326,13.29491372,86.681,86.62,10.389]
[1773118994536,13.29491372,86.681,86.6,12.78062157]
[1773118994736,13.29227146,86.679,86.6,12.78062157]
[1773118995035,13.29227146,86.677,86.6,12.78062157]
[1773118995239,13.29227146,86.675,86.6,12.78062157]
[1773118995432,13.29227146,86.661,86.6,23.17262157]
[1773118995634,13.29227146,86.661,86.6,12.78062157]
[1773118996638,13.26257339,86.682,86.62,12.78062157]
[1773118998133,12.78062157,86.72,86.62,12.78062157]
[1773118998134,13.26257179,86.68,86.634,10.387]
[1773118999336,13.26257179,86.68,86.62,12.78062157]
[1773118999532,13.24351776,86.693,86.63,12.7741386]
[1773118999936,13.24351776,86.693,86.638,10.387]
[1773119000243,13.24351776,86.691,86.638,10.387]
[1773119000430,13.2433274,86.689,86.61,12.7741386]
[1773119000630,13.2433274,86.687,86.629,10.388]
[1773119000835,13.2433274,86.687,86.583,21.04705713]
[1773119000836,13.2433274,86.685,86.59,12.7741386]
[1773119001140,13.2433274,86.673,86.59,12.7741386]
[1773119001341,13.2433274,86.673,86.609,10.39]
[1773119001537,13.24332594,86.671,86.609,10.39]
[1773119001737,13.24332594,86.67,86.59,12.7741386]
[1773119003540,13.24332594,86.67,86.617,10.389]
[1773119003940,13.24832757,86.666,86.617,10.389]
[1773119004336,13.24832757,86.665,86.608,10.391]
[1773119005745,13.26931433,86.659,86.608,10.391]
[1773119006432,13.26931433,86.659,86.58,12.7741386]
[1773119007444,13.26931433,86.659,86.603,10.391]
[1773119011048,13.26931433,86.659,86.58,12.7741386]
[1773119011846,10.76853613,86.688,86.58,12.7741386]
[1773119011847,13.32538775,86.655,86.603,10.391]
[1773119012043,13.32538775,86.655,86.58,12.7741386]
[1773119012746,13.31867076,86.686,86.6,12.7741386]
[1773119012949,13.31867076,86.684,86.6,12.7741386]
[1773119013141,13.31867076,86.682,86.6,12.7741386]
[1773119013337,13.31867076,86.68,86.6,12.7741386]
[1773119013943,13.31867076,86.68,86.62,12.7741386]
[1773119015248,13.31867076,86.68,86.625,10.389]
[1773119015938,13.31867076,86.68,86.634,10.387]
[1773119017137,13.31867076,86.68,86.61,12.7741386]
[1773119017449,13.32701024,86.678,86.61,12.7741386]
[1773119018449,13.32701024,86.678,86.615,10.39]
[1773119019746,13.32768689,86.674,86.615,10.39]
[1773119021350,13.32768689,86.674,86.603,10.391]
[1773119021651,13.32797415,86.683,86.61,12.7741386]
[1773119023545,13.32797415,86.683,86.64,4.77048724]
[1773119023747,13.32653883,86.679,86.63,15.15848724]
[1773119024647,8.61418359,86.678,86.62,4.77048724]
[1773119024844,13.33358517,86.677,86.62,4.77048724]
[1773119025043,13.33358517,86.675,86.62,4.77048724]
[1773119025244,13.33358517,86.675,86.63,4.77048724]
[1773119026050,13.33358517,86.675,86.63,15.15848724]
[1773119027650,13.33358517,86.675,86.63,10.388]
[1773119028849,8.62260896,86.684,86.62,12.78170254]
[1773119029053,13.3311073,86.705,86.64,12.78170254]
[1773119029959,13.3311073,86.705,86.655,10.385]
[1773119031455,13.3311073,86.705,86.64,12.78170254]
[1773119032360,13.3311073,86.705,86.667,10.383]
[1773119033064,13.32925022,86.728,86.66,12.78170254]
[1773119033359,13.32925022,86.728,86.689,10.381]
[1773119035256,13.32925022,86.728,86.679,10.382]
[1773119035563,13.32925022,86.728,86.65,12.78170254]
[1773119035765,13.32925022,86.728,86.67,12.78170254]
[1773119035965,13.32925022,86.728,86.65,12.78170254]
[1773119036559,13.32925022,86.728,86.67,12.78170254]
[1773119036758,13.32925022,86.728,86.65,12.78170254]
[1773119037061,13.32925022,86.728,86.671,10.383]
[1773119038264,13.32925022,86.728,86.66,10.384]
[1773119039367,13.33502329,86.717,86.66,10.384]
[1773119039967,13.33502329,86.731,86.65,12.78170254]
[1773119040361,13.33502329,86.731,86.67,10.383]
[1773119040560,13.41298713,86.727,86.63,12.78170254]
[1773119041166,13.41298713,86.7,86.639,10.387]
[1773119041671,13.41298713,86.7,86.62,12.78170254]
[1773119042267,13.41298713,86.7,86.64,12.78170254]
[1773119043266,13.41298713,86.7,86.646,10.386]
[1773119043668,13.41298713,86.7,86.62,12.78170254]
[1773119045266,13.4120853,86.698,86.635,10.387]
[1773119045676,13.4120853,86.698,86.62,12.78170254]
[1773119046376,13.4120853,86.698,86.64,12.78170254]
[1773119047275,13.4120853,86.698,86.64,12.7701604]
[1773119048468,13.4120853,86.698,86.657,10.385]
[1773119049780,13.4120853,86.698,86.66,4.76778364]
[1773119050073,13.4120853,86.698,86.663,10.384]
[1773119051676,13.4120853,86.698,86.66,4.76778364]
[1773119051877,13.4120853,86.698,86.654,10.385]
[1773119052072,13.4120853,86.698,86.66,4.76778364]
[1773119052272,13.4120853,86.698,86.67,4.76778364]
[1773119055477,10.376,86.727,86.68,4.76778364]
[1773119055478,13.40947973,86.712,86.68,4.76778364]
[1773119059480,13.39484496,86.735,86.69,4.76778364]
[1773119059681,13.39484496,86.735,86.681,10.382]
[1773119060073,10.376,86.734,86.681,10.382]
[1773119060278,13.39484496,86.733,86.681,10.382]
[1773119060671,10.376,86.732,86.68,4.76778364]
[1773119060878,13.39632879,86.731,86.68,4.76778364]
[1773119061580,13.39632879,86.731,86.68,4.76613562]
[1773119061977,13.39632786,86.729,86.67,4.76613562]
[1773119062275,72.04226255,86.875,86.67,4.76613562]
[1773119062276,13.39632786,86.719,86.67,4.76613562]
[1773119062779,13.39817064,86.718,86.67,4.76613562]
[1773119063279,13.39817064,86.718,86.68,4.76613562]
[1773119064680,13.39817064,86.718,86.67,4.76613562]
[1773119064982,13.39817064,86.718,86.668,10.383]
[1773119065774,13.39817064,86.718,86.66,4.76613562]
[1773119065974,13.40079969,86.709,86.65,4.76613562]
[1773119066179,13.40079969,86.709,86.67,4.76613562]
[1773119066581,13.40079969,86.709,86.66,4.76613562]
[1773119066874,13.40079969,86.709,86.67,4.76613562]
[1773119068180,13.40079969,86.709,86.663,10.384]
[1773119068884,13.40079969,86.709,86.66,4.76613562]
[1773119069087,13.39335756,86.708,86.66,4.76613562]
[1773119069280,10.379,86.705,86.653,10.385]
[1773119069483,13.39335672,86.699,86.653,10.385]
[1773119069682,13.39335672,86.699,86.65,4.76613562]
[1773119070588,13.39335672,86.699,86.659,10.384]
[1773119077292,13.39335672,86.699,86.651,10.385]
[1773119078290,13.45549044,86.689,86.64,10.387]
[1773119078495,13.45549044,86.687,86.64,10.387]
[1773119078693,4.76613562,86.69,86.632,10.388]
[1773119078694,13.45630865,86.684,86.632,10.388]
[1773119078891,10.76853613,86.707,86.632,10.388]
[1773119078892,13.45630865,86.679,86.632,10.388]
[1773119080698,13.45630865,86.679,86.641,10.387]
[1773119081698,13.45931581,86.693,86.65,4.76613562]
[1773119082697,13.45931581,86.693,86.651,10.385]
[1773119084198,10.76853613,86.715,86.642,10.386]
[1773119084199,13.46314528,86.689,86.642,10.386]
[1773119085200,13.49300731,86.679,86.63,4.76613562]
[1773119085498,13.49300731,86.679,86.629,10.388]
[1773119085700,13.49300731,86.679,86.63,4.76613562]
[1773119085900,13.49300731,86.679,86.638,10.387]
[1773119088204,13.49215493,86.669,86.61,4.76613562]
[1773119089606,13.49215493,86.669,86.62,10.389]
[1773119089998,13.49215493,86.669,86.628,10.388]
[1773119090907,13.49215493,86.669,86.643,10.386]
[1773119091103,10.38,86.697,86.643,10.386]
[1773119091104,13.44126394,86.689,86.643,10.386]
[1773119092409,13.44126325,86.679,86.643,10.386]
[1773119093008,13.44126325,86.679,86.634,10.387]
[1773119095716,4.76613562,86.67,86.634,10.387]
[1773119095922,13.44274608,86.669,86.624,10.389]
[1773119098620,13.44274608,86.669,86.62,4.76613562]
[1773119098821,13.44274608,86.669,86.63,4.76613562]
[1773119099124,13.47867299,86.682,86.642,10.386]
[1773119099324,13.47867299,86.682,86.566,177.0]
[1773119099325,13.47867299,86.682,86.64,4.76613562]
[1773119100324,13.47867299,86.682,86.649,10.386]
[1773119100720,13.49406754,86.679,86.62,4.76613562]
[1773119100918,13.49406754,86.669,86.62,4.76613562]
[1773119101121,13.49406754,86.669,86.596,20.784]
[1773119101122,13.49406754,86.669,86.63,4.76613562]
[1773119102422,13.49406754,86.669,86.636,10.387]
[1773119104325,13.49406754,86.669,86.63,4.76613562]
[1773119104326,6.754e-05,86.669,86.645,10.386]
[1773119104525,4.76613562,86.69,86.645,10.386]
[1773119105118,8.58148326,86.698,86.653,10.385]
[1773119105319,8.58148326,86.697,86.65,4.76613562]
[1773119105523,8.58148326,86.697,86.568,27.78701753]
[1773119105524,8.58148326,86.709,86.66,4.76613562]
[1773119105719,8.58148326,86.708,86.66,4.76613562]
[1773119105925,8.58148326,86.707,86.65,4.76613562]
[1773119106125,4.76613562,86.7,86.65,4.76613562]
[1773119106326,6.78050787,86.698,86.64,4.76613562]
[1773119106628,6.78050787,86.689,86.64,4.76613562]
[1773119107425,6.78050787,86.689,86.647,10.386]
[1773119111235,6.74969935,86.679,86.639,10.387]
[1773119113528,6.74915877,86.669,86.61,4.76613562]
[1773119114136,6.74915877,86.669,86.621,10.389]
[1773119114937,4.76613562,86.67,86.61,4.76613562]
[1773119114938,6.69849664,86.659,86.61,4.76613562]
[1773119116338,6.69849664,86.659,86.62,10.389]
[1773119116637,6.69849664,86.659,86.6,4.76613562]
[1773119116838,6.69849664,86.659,86.61,4.76613562]
[1773119117835,6.69515407,86.649,86.59,4.76613562]
[1773119120135,6.68953783,86.669,86.61,4.76613562]
[1773119120337,6.68953783,86.669,86.618,10.389]
[1773119121138,6.68953783,86.669,86.623,10.389]
[1773119121941,6.6987329,86.659,86.6,4.76613562]
[1773119122143,4.76613562,86.66,86.557,20.794]
[1773119122144,6.6987329,86.657,86.61,4.76613562]
[1773119122541,6.69657644,86.672,86.62,4.76613562]
[1773119122745,6.69657644,86.672,86.63,4.76613562]
[1773119122943,4.76613562,86.67,86.62,4.76613562]
[1773119123141,6.69657644,86.669,86.621,10.389]
[1773119124341,6.69657644,86.669,86.62,4.77276646]
[1773119124342,6.69657644,86.669,86.629,10.388]
[1773119124544,6.69657644,86.669,86.61,4.77276646]
[1773119126246,6.69657644,86.669,86.58,34.61]
[1773119126247,6.64098924,86.659,86.606,10.391]
[1773119127446,6.6360445,86.679,86.63,4.77276646]
[1773119127648,6.6360445,86.677,86.63,4.77276646]
[1773119127946,6.6360445,86.677,86.64,4.77276646]
[1773119128147,6.6360445,86.677,86.641,10.387]
[1773119128449,8.59540712,86.688,86.65,4.77276646]
[1773119128639,6.6360445,86.69,86.65,4.77276646]
[1773119128840,6.6360445,86.69,86.64,4.77276646]
[1773119130351,6.6360445,86.69,86.644,10.386]
[1773119130352,6.62284519,86.689,86.644,10.386]
[1773119131847,6.62284519,86.689,86.634,10.387]
[1773119132042,6.62284519,86.689,86.63,4.77276646]
[1773119132247,6.62284519,86.689,86.64,4.77276646]
[1773119133353,6.62284519,86.689,86.642,10.386]
[1773119133648,6.62284519,86.689,86.64,4.77276646]
[1773119133855,161.293,86.795,86.604,20.783]
[1773119133856,6.56050237,86.707,86.66,4.77276646]
[1773119134049,6.56050237,86.705,86.66,4.77276646]
[1773119134249,15.17623666,86.704,86.66,4.77276646]
[1773119134450,15.17623666,86.703,86.66,4.77276646]
[1773119134653,8.61573429,86.702,86.66,4.77276646]
[1773119134854,6.56114097,86.7,86.661,10.384]
[1773119135054,6.56114097,86.698,86.661,10.384]
[1773119135352,8.61573429,86.697,86.661,10.384]
[1773119135553,8.61573429,86.696,86.661,10.384]
[1773119135760,8.61573429,86.695,86.661,10.384]
[1773119135954,6.56114097,86.698,86.661,10.384]
[1773119136255,8.61461884,86.697,86.661,10.384]
[1773119136558,8.61461884,86.696,86.661,10.384]
[1773119136856,8.61461884,86.695,86.661,10.384]
[1773119137148,6.56114097,86.698,86.661,10.384]
[1773119137354,8.61362082,86.697,86.661,10.384]
[1773119137553,8.61362082,86.696,86.661,10.384]
[1773119137750,6.56810742,86.694,86.64,4.77276646]
[1773119137956,6.56810742,86.689,86.64,4.77276646]
[1773119138449,6.56810742,86.689,86.651,10.385]
[1773119139744,6.56810742,86.689,86.65,4.77276646]
[1773119139945,4.18458459,86.669,86.61,4.77276646]
[1773119140247,4.77276646,86.67,86.62,4.77276646]
[1773119140248,12.79987123,86.668,86.62,4.77276646]
[1773119140457,4.18458459,86.668,86.62,4.77276646]
[1773119140644,4.18458459,86.668,86.61,4.77276646]
[1773119141052,4.77276646,86.66,86.61,4.77276646]
[1773119141955,4.18458459,86.668,86.61,4.77276646]
[1773119141956,4.18458459,86.668,86.624,10.389]
[1773119142551,4.18458459,86.668,86.633,10.388]
[1773119142954,4.77276646,86.68,86.633,10.388]
[1773119143755,4.77276646,86.67,86.633,10.388]
[1773119143959,4.77276646,86.68,86.642,10.386]
[1773119144453,4.20639422,86.683,86.642,10.386]
[1773119146855,4.77276646,86.69,86.65,10.385]
[1773119147057,8.61244192,86.696,86.65,4.77276646]
[1773119147457,12.80557138,86.696,86.65,4.77276646]
[1773119147758,4.19312946,86.696,86.65,4.77276646]
[1773119148061,4.19312946,86.696,86.658,10.385]
[1773119148462,12.80557138,86.696,86.658,10.385]
[1773119148663,8.61244192,86.709,86.666,10.384]
[1773119148963,4.18550611,86.707,86.666,10.384]
[1773119149162,8.61244192,86.706,86.666,10.384]
[1773119149363,8.61244192,86.705,86.666,10.384]
[1773119149558,8.61244192,86.706,86.666,10.384]
[1773119149761,4.18550345,86.689,86.64,4.77276646]
[1773119150159,4.18550345,86.689,86.656,10.385]
[1773119150466,0.00050345,86.689,86.661,3.92017446]
[1773119151466,0.00050345,86.689,86.663,10.384]
[1773119151664,0.00050345,86.689,86.66,4.77276646]
[1773119151665,0.00050345,86.689,86.664,3.8584576]
[1773119152266,3.79808409,86.709,86.666,10.384]
[1773119155059,3.79808409,86.709,86.666,14.26044655]
[1773119155366,3.79808409,86.724,86.68,8.64921301]
[1773119156467,3.79808409,86.724,86.682,10.382]
[1773119157966,8.59911393,86.734,86.691,3.93698195]
[1773119158167,3.79808409,86.738,86.691,3.93698195]
[1773119158367,12.39719802,86.738,86.691,3.93698195]
[1773119158562,3.79808409,86.738,86.691,3.93698195]
[1773119158769,12.39719802,86.738,86.691,3.93698195]
[1773119158965,3.79808409,86.738,86.691,3.93698195]
[1773119160470,3.79808409,86.729,86.691,3.93698195]
[1773119160864,8.59911393,86.735,86.691,3.93698195]
[1773119161064,8.59911393,86.739,86.695,3.90050543]
[1773119161368,3.79808409,86.739,86.695,3.90050543]
[1773119161765,3.79808409,86.739,86.701,10.379]
[1773119163471,3.79808409,86.739,86.702,3.77391014]
[1773119163664,0.57682767,86.761,86.72,4.77276646]
[1773119164466,0.57682767,86.761,86.721,3.77391014]
[1773119164869,0.57682767,86.761,86.731,3.77391014]
[1773119166471,0.57682767,86.761,86.734,3.77391014]
[1773119167676,4.32612541,86.761,86.71,8.5466766]
[1773119167870,4.32612541,86.761,86.711,3.77391014]
[1773119168069,4.32612541,86.761,86.72,4.77276646]
[1773119168677,4.32612541,86.761,86.72,15.14976646]
[1773119168973,4.32612541,86.761,86.721,3.77391014]
[1773119170376,4.32612541,86.761,86.723,10.377]
[1773119171981,0.00082767,86.761,86.734,3.77391014]
[1773119173081,0.00082767,86.761,86.74,4.77276646]
[1773119173488,0.00082767,86.761,86.731,3.77391014]
[1773119174582,0.00082767,86.761,86.716,3.77391014]
[1773119174583,3.74929774,86.759,86.716,3.77391014]
[1773119174787,3.74929774,86.759,86.711,10.378]
[1773119175884,3.74929774,86.759,86.701,3.77391014]
[1773119176085,8.5220642,86.75,86.701,3.77391014]
[1773119176295,3.74929774,86.749,86.701,3.77391014]
[1773119178585,3.74929774,86.749,86.7,10.38]
[1773119178586,4.77276646,86.73,86.688,3.77391014]
[1773119178786,4.77276646,86.75,86.691,3.77391014]
[1773119178991,3.74929774,86.749,86.691,3.77391014]
[1773119179493,4.77276646,86.74,86.693,10.38]
[1773119179789,3.74929774,86.739,86.691,3.77391014]
[1773119180190,3.74929774,86.739,86.693,3.77391014]
[1773119181093,3.74929774,86.749,86.693,3.77391014]
[1773119181491,3.74929774,86.749,86.695,3.77391014]
[1773119181686,3.74929774,86.759,86.701,3.77391014]
[1773119181992,3.74929774,86.759,86.72,4.77276646]
[1773119182290,0.00082767,86.761,86.721,3.77391014]
[1773119183198,3.74929774,86.759,86.707,3.77391014]
[1773119183498,3.74929774,86.749,86.707,3.77391014]
[1773119184486,3.74929774,86.749,86.699,10.38]
[1773119185096,3.74929774,86.749,86.699,14.15391014]
[1773119185690,3.74929774,86.749,86.7,4.76366084]
[1773119186495,3.74929774,86.749,86.699,14.15391014]
[1773119187094,3.74929774,86.749,86.705,10.379]
[1773119187894,3.74929774,86.749,86.7,3.77391014]
[1773119188798,8.51295858,86.74,86.7,3.77391014]
[1773119188997,3.74929774,86.739,86.7,3.77391014]
[1773119189603,3.74929774,86.739,86.692,10.381]
[1773119189801,3.74929774,86.737,86.687,3.77391014]
[1773119191500,3.74929774,86.737,86.689,14.15491014]
[1773119191704,3.74929774,86.737,86.69,4.76366084]
[1773119191903,3.74929774,86.737,86.691,3.77391014]
[1773119193101,3.74929774,86.729,86.678,3.77391014]
[1773119193300,4.76366084,86.72,86.678,3.77391014]
[1773119193501,3.81026313,86.719,86.678,3.77391014]
[1773119194405,3.81026313,86.719,86.661,3.69070122]
[1773119194608,3.81026313,86.719,86.67,8.45436206]
[1773119195003,3.81026313,86.719,86.68,4.76366084]
[1773119195407,3.81026313,86.719,86.672,3.69070122]
[1773119195602,3.81026313,86.719,86.594,27.95944608]
[1773119195603,4.76366084,86.73,86.68,8.45436206]
[1773119195801,3.81026313,86.73,86.681,3.69070122]
[1773119196610,3.81026313,86.745,86.691,3.69070122]
[1773119197109,3.81026313,86.739,86.691,3.69070122]
[1773119197309,3.81026313,86.739,86.7,4.76366084]
[1773119197709,3.81026313,86.739,86.692,10.38]
[1773119197710,3.81026313,86.739,86.692,14.07070122]
[1773119198110,3.81026313,86.739,86.692,3.69070122]
[1773119198513,8.57392397,86.73,86.681,10.382]
[1773119199003,3.81026313,86.729,86.68,4.76366084]
[1773119199201,3.81026313,86.729,86.678,3.69070122]
[1773119199202,3.81026313,86.719,86.678,3.69070122]
[1773119200914,3.81026313,86.719,86.68,4.76366084]
[1773119201711,3.81026313,86.719,86.678,3.69070122]
[1773119202914,3.81026313,86.719,86.67,10.383]
[1773119203214,3.81026313,86.719,86.67,14.07370122]
[1773119203406,4.76366084,86.71,86.67,3.69070122]
[1773119204012,3.81026313,86.719,86.67,3.69070122]
[1773119204510,3.81026313,86.716,86.67,3.69070122]
[1773119204709,3.81026313,86.716,86.67,8.45436206]
[1773119205115,3.81026313,86.716,86.671,3.69070122]
[1773119205514,4.76366084,86.71,86.671,3.69070122]
[1773119205713,3.81026313,86.709,86.661,10.384]
[1773119206314,3.81026313,86.709,86.657,3.69070122]
[1773119206514,10.68289921,86.748,86.657,3.69070122]
[1773119206515,3.81026313,86.699,86.657,3.69070122]
[1773119207214,3.81026313,86.699,86.652,10.385]
[1773119207615,3.81026313,86.689,86.63,4.76366084]
[1773119207806,3.81026313,86.679,86.63,8.45436206]
[1773119208013,3.81026313,86.679,86.631,3.69070122]
[1773119208316,3.81026313,86.679,86.633,10.388]
[1773119208515,3.81026313,86.679,86.634,3.69070122]
[1773119211913,3.81026313,86.679,86.634,14.07770122]
[1773119212714,3.81026313,86.679,86.634,3.69070122]
[1773119213320,4.76366084,86.67,86.634,3.69070122]
[1773119214016,3.81026313,86.679,86.634,3.69070122]
[1773119215223,3.81026313,86.679,86.624,10.389]
[1773119215425,3.81026313,86.679,86.62,4.76366084]
[1773119215426,3.81026313,86.679,86.627,3.6838497]
[1773119216827,3.81026313,86.679,86.629,3.6838497]
[1773119217025,4.76366084,86.67,86.629,3.6838497]
[1773119217223,3.81026313,86.679,86.631,3.6838497]
[1773119218429,3.81026313,86.679,86.634,3.6838497]
[1773119218623,4.76366084,86.68,86.634,3.6838497]
[1773119218821,3.66557097,86.692,86.634,3.6838497]
[1773119218822,4.76366084,86.69,86.634,3.6838497]
[1773119219022,4.76366084,86.68,86.634,3.6838497]
[1773119220224,3.66557097,86.692,86.634,3.6838497]
[1773119220519,4.76366084,86.68,86.645,3.6838497]
[1773119221126,4.76366084,86.65,86.622,3.6838497]
[1773119221324,4.76366084,86.65,86.601,3.6838497]
[1773119221630,4.76366084,86.64,86.606,3.6838497]
[1773119222333,3.66557097,86.649,86.606,3.6838497]
[1773119223526,3.66557097,86.649,86.591,4.0464415]
[1773119223730,3.66557097,86.649,86.601,4.0464415]
[1773119225537,3.66557097,86.649,86.601,14.4374415]
[1773119225829,3.66557097,86.649,86.602,4.0464415]
[1773119227534,3.66557097,86.649,86.607,4.0464415]
[1773119228234,4.76366084,86.66,86.607,4.0464415]
[1773119228430,4.02235739,86.662,86.612,10.39]
[1773119228637,4.02235739,86.662,86.56,34.61]
[1773119228638,4.76366084,86.66,86.613,4.0464415]
[1773119229429,8.78601823,86.66,86.615,10.39]
[1773119229631,4.76366084,86.64,86.598,4.0464415]
[1773119231437,8.78601823,86.64,86.598,4.0464415]
[1773119232431,4.76366084,86.65,86.598,4.0464415]
[1773119232736,4.02235739,86.649,86.598,4.0464415]
[1773119233239,4.02235739,86.649,86.601,4.0464415]
[1773119234438,4.02235739,86.649,86.607,10.391]
[1773119234638,8.78601823,86.66,86.608,4.0464415]
[1773119234835,4.02235739,86.649,86.608,4.0464415]
[1773119239646,4.02235739,86.649,86.604,4.0464415]
[1773119241047,4.02235739,86.639,86.594,4.0464415]
[1773119243450,4.02235739,86.639,86.597,4.0464415]
[1773119244351,8.78601823,86.65,86.601,4.0464415]
[1773119244542,4.02235739,86.649,86.601,4.0464415]
[1773119245347,4.02235739,86.649,86.606,10.391]
[1773119247653,4.77534857,86.64,86.606,10.391]
[1773119251557,4.02235739,86.649,86.611,4.0464415]
[1773119252355,4.02235739,86.649,86.6,4.77534857]
[1773119252356,4.77534857,86.65,86.613,4.0464415]
[1773119253654,8.67778807,86.66,86.613,4.0464415]
[1773119253655,4.77534857,86.66,86.613,4.0464415]
[1773119253853,3.81928083,86.659,86.613,4.0464415]
[1773119254156,3.81928083,86.659,86.616,3.997898]
[1773119254551,3.81928083,86.659,86.611,3.997898]
[1773119254856,3.81928083,86.659,86.618,3.997898]
[1773119256352,3.81928083,86.659,86.625,10.388]
[1773119259054,3.81928083,86.659,86.618,3.997898]
[1773119259258,4.77534857,86.65,86.618,3.997898]
[1773119259857,3.81928083,86.659,86.618,3.997898]
[1773119260750,3.81928083,86.659,86.621,10.389]